fUSD/lending_fUSD_20260127
["ID","MTS","AMOUNT","RATE_DAILY","PERIOD"]
[403734156,1769517045439,-455.246327,0.000432,120]
[403734157,1769517045448,-1019.740972,0.000432,120]
[403734158,1769517045457,-455.246327,0.000432,120]
[403734159,1769517045466,-151.0,0.000432,120]
[403734161,1769517045475,-455.246327,0.000432,120]
[403734162,1769517045484,-455.246327,0.000432,120]
[403734163,1769517045493,-820.021617,0.000432,120]
[403734164,1769517045501,-820.021617,0.000432,120]
[403734165,1769517045510,-151.0,0.000432,120]
[403734166,1769517045519,-898.75372,0.000432,120]
[403734167,1769517045529,-820.021617,0.000432,120]
[403734169,1769517045538,-898.75372,0.000432,120]
[403734171,1769517045547,-151.0,0.000432,120]
[403734173,1769517045557,-820.021617,0.000432,120]
[403734175,1769517045567,-898.75372,0.000432,120]
[403734177,1769517045576,-151.0,0.000432,120]
[403734179,1769517045585,-898.75372,0.000432,120]
[403734180,1769517045595,-507.98234,0.000432,90]
[403734181,1769517045604,-1180.108865,0.000432,120]
[403734182,1769517045613,-507.98234,0.000432,90]
[403734183,1769517045622,-1180.108865,0.000432,120]
[403734184,1769517045631,-151.0,0.000432,120]
[403734185,1769517045640,-507.98234,0.000432,90]
[403734186,1769517045649,-1180.108865,0.000432,120]
[403734187,1769517045658,-151.0,0.000432,120]
[403734188,1769517045667,-424.452439,0.000432,120]
[403734189,1769517045677,-151.0,0.000432,120]
[403734190,1769517045686,-507.98234,0.000432,90]
[403734191,1769517045697,-1180.108865,0.000432,120]
[403734192,1769517045707,-424.452439,0.000432,120]
[403734193,1769517045719,-13000.0,0.000432,10]
[403734194,1769517045730,-21576.51414486,0.000432,120]
[403734195,1769517045740,-407.0,0.00043212,2]
[403734196,1769517045751,-163.67431,0.00043238,120]
[403734197,1769517045762,-800.0,0.00043241,16]
[403734198,1769517045771,-800.0,0.00043241,16]
[403734199,1769517045781,-800.0,0.00043241,16]
[403734200,1769517045790,-800.0,0.00043241,16]
[403734201,1769517045801,-800.0,0.00043241,16]
[403734202,1769517045811,-800.0,0.00043241,16]
[403734203,1769517045819,-800.0,0.00043241,16]
[403734204,1769517045828,-800.0,0.00043241,16]
[403734205,1769517045838,-151.0,0.00043241,30]
[403734206,1769517045848,-707.02767507,0.00043249,28]
[403734207,1769517045858,-323.20601337,0.00043249,2]
[403734208,1769517045867,-500.0,0.0004326,120]
[403734209,1769517045877,-1000.0,0.00043288,30]
[403734210,1769517045886,-246.47474403,0.00043296,116]
[403734211,1769517045896,-300.0,0.00043299,30]
[403734212,1769517045906,-3979.09130747,0.000433,120]
[403734213,1769517045917,-3015.34,0.000433,10]
[403734214,1769517045927,-1081.52,0.000433,10]
[403734215,1769517045936,-150.0,0.000433,27]
[403734216,1769517045946,-55058.31206246,0.000433,120]
[403734217,1769517045959,-144355.30088018,0.000433,120]
[403734218,1769517045970,-591.52995254,0.000433,120]
[403734219,1769517045981,-440.96,0.000433,120]
[403734220,1769517046059,-422.95357446,0.00016438,2]
[403734221,1769517046077,-243.23954325,0.00016438,2]
[403734222,1769517046088,-369.73513618,0.00016438,2]
[403734223,1769517046113,-296.45798153,0.00016438,2]
[403734224,1769517046122,-203.54201847,0.00016438,2]
[403734225,1769517046138,-462.65109924,0.00016438,2]
[403734226,1769517046399,-666.19311771,0.00016438,2]
[403734227,1769517046409,-666.19311771,0.00016438,2]
[403734228,1769517046419,-666.19311771,0.00016438,2]
[403734229,1769517046428,-424.452439,0.000432,120]
[403734230,1769517046437,-151.0,0.000432,120]
[403734231,1769517046446,-424.452439,0.000432,120]
[403734232,1769517046455,-17207.99050567,0.000433,120]
[403734233,1769517046467,-541.90514706,0.000433,120]
[403734234,1769517046773,-0.3963509,0.000433,120]
[403734235,1769517046785,-740.39071647,0.000433,120]
[403734236,1769517046796,-528.91588878,0.000433,120]
[403734237,1769517046809,-457.23900044,0.000433,120]
[403734238,1769517046820,-253.88923684,0.000433,120]
[403734239,1769517046831,-1174.910634,0.000433,120]
[403734240,1769517046857,-666.19311771,0.00016438,2]
[403734241,1769517046867,-666.19311771,0.00016438,2]
[403734242,1769517046877,-1524.23417548,0.000433,120]
[403734243,1769517047112,-319.15835793,0.00015619,2]
[403734244,1769517047121,-227.4186,0.00015845,2]
[403734245,1769517047130,-289.99008962,0.00015944,2]
[403734246,1769517047139,-314.28172918,0.00015944,2]
[403734247,1769517047149,-666.19311771,0.00016438,2]
[403734248,1769517047158,-666.19311771,0.00016438,2]
[403734249,1769517047170,-666.19311771,0.00016438,2]
[403734250,1769517047182,-666.19311771,0.00016438,2]
[403734251,1769517047192,-666.19311771,0.00016438,2]
[403734252,1769517047202,-666.19311771,0.00016438,2]
[403734253,1769517047212,-666.19311771,0.00016438,2]
[403734254,1769517047222,-666.19311771,0.00016438,2]
[403734255,1769517047232,-666.19311771,0.00016438,2]
[403734256,1769517047242,-666.19311771,0.00016438,2]
[403734257,1769517047251,-666.19311771,0.00016438,2]
[403734258,1769517047260,-666.19311771,0.00016438,2]
[403734259,1769517047270,-666.19311771,0.00016438,2]
[403734260,1769517047279,-666.19311771,0.00016438,2]
[403734261,1769517047292,-666.19311771,0.00016438,2]
[403734262,1769517047301,-666.19311771,0.00016438,2]
[403734263,1769517047311,-666.19311771,0.00016438,2]
[403734264,1769517047320,-666.19311771,0.00016438,2]
[403734265,1769517047331,-666.19311771,0.00016438,2]
[403734266,1769517047340,-209.52626285,0.00016438,2]
[403734267,1769517047351,-456.66685486,0.00016438,2]
[403734268,1769517047362,-666.19311771,0.00016438,2]
[403734269,1769517047371,-666.19311771,0.00016438,2]
[403734270,1769517047381,-666.19311771,0.00016438,2]
[403734271,1769517047390,-666.19311771,0.00016438,2]
[403734272,1769517047400,-666.19311771,0.00016438,2]
[403734273,1769517047412,-666.19311771,0.00016438,2]
[403734274,1769517047422,-666.19311771,0.00016438,2]
[403734275,1769517047433,-2431.05036807,0.00018692,2]
[403734276,1769517047443,-1304.4309531,0.000433,120]
[403734278,1769517340612,-300.0,0.00015644,2]
[403734279,1769517340638,-371.03738551,0.00015645,2]
[403734280,1769517340662,-36.54915588,0.00015645,2]
[403734281,1769517340720,-561.5669004,0.00015645,2]
[403734284,1769517568684,-159.57917897,0.00015553,2]
[403734285,1769517568708,-195.0,0.00015565,2]
[403734286,1769517568730,-296.4208212,0.00015565,2]
[403734287,1769517674210,-288.79765623,0.00015476,2]
[403734288,1769517723591,150.0,0.00014976,2]
[403734289,1769517881980,2531.6,0.00014976,2]
[403734290,1769517895150,5800.0,0.00021,30]
[403734291,1769517897775,262.77,0.00014822,2]
[403734292,1769517920083,-211.20234377,0.00015476,2]
[403734293,1769517920116,-159.57917896,0.00015499,2]
[403734294,1769517920148,-250.0,0.00015521,2]
[403734295,1769517920188,-250.0,0.00015555,2]
[403734296,1769517920226,-280.0,0.00015565,2]
[403734297,1769517920258,-300.0,0.00015599,2]
[403734298,1769517920289,-1200.0,0.00015599,2]
[403734299,1769517920318,-10003.0,0.000156,2]
[403734300,1769517920350,-300.0,0.00015641,2]
[403734301,1769517920379,-345.0441161,0.00015642,2]
[403734302,1769517920424,-500.0,0.00015642,2]
[403734303,1769517920834,-500.0,0.00015642,2]
[403734304,1769517920873,-500.0,0.00015642,2]
[403734305,1769517920909,-500.0,0.00015642,2]
[403734306,1769517920948,-500.0,0.00015642,2]
[403734307,1769517920986,-500.0,0.00015642,2]
[403734308,1769517921017,-256.43049245,0.00015642,2]
[403734309,1769517921055,-500.0,0.00015642,2]
[403734310,1769517921093,-500.0,0.00015642,2]
[403734311,1769517921131,-500.0,0.00015642,2]
[403734312,1769517921169,-500.0,0.00015642,2]
[403734313,1769517921208,-500.0,0.00015642,2]
[403734314,1769517921247,-500.0,0.00015642,2]
[403734315,1769517921285,-500.0,0.00015642,2]
[403734316,1769517921324,-500.0,0.00015642,2]
[403734317,1769517921367,-500.0,0.00015642,2]
[403734318,1769517921403,-500.0,0.00015642,2]
[403734319,1769517921442,-500.0,0.00015642,2]
[403734320,1769517921480,-500.0,0.00015642,2]
[403734321,1769517921525,-500.0,0.00015642,2]
[403734322,1769517921563,-500.0,0.00015642,2]
[403734323,1769517921600,-500.0,0.00015642,2]
[403734324,1769517921638,-500.0,0.00015642,2]
[403734325,1769517921674,-500.0,0.00015642,2]
[403734326,1769517921711,-500.0,0.00015642,2]
[403734327,1769517921748,-500.0,0.00015642,2]
[403734328,1769517921787,-500.0,0.00015642,2]
[403734329,1769517921826,-500.0,0.00015642,2]
[403734330,1769517921865,-321.73314057,0.00015642,2]
[403734331,1769517921904,-500.0,0.00015642,2]
[403734332,1769517921943,-500.0,0.00015642,2]
[403734333,1769517921983,-500.0,0.00015642,2]
[403734334,1769517922023,-500.0,0.00015642,2]
[403734335,1769517922062,-500.0,0.00015642,2]
[403734336,1769517922099,-500.0,0.00015642,2]
[403734337,1769517922137,-500.0,0.00015642,2]
[403734338,1769517922175,-500.0,0.00015642,2]
[403734339,1769517922214,-500.0,0.00015642,2]
[403734340,1769517922253,-500.0,0.00015642,2]
[403734341,1769517922291,-500.0,0.00015642,2]
[403734342,1769517922330,-500.0,0.00015642,2]
[403734343,1769517922369,-500.0,0.00015642,2]
[403734344,1769517922408,-500.0,0.00015642,2]
[403734345,1769517922447,-250.0,0.00015642,2]
[403734346,1769517922479,-198.30684521,0.00015644,2]
[403734347,1769517922513,-530.3977604,0.00015644,2]
[403734348,1769517922543,-226.05199722,0.00015644,2]
[403734349,1769517922578,-500.0,0.00015644,2]
[403734350,1769517922612,-229.27466891,0.00015644,2]
[403734351,1769517922643,-158.3816,0.00015645,2]
[403734352,1769517922677,-13530.59785641,0.00015645,2]
[403734353,1769517922810,-50000.0,0.00015645,2]
[403734354,1769517924217,-25680.11874359,0.00015645,2]
[403734355,1769517924247,-2500.0,0.00015645,2]
[403734356,1769517924278,-500.0,0.00015645,2]
[403734357,1769517924305,-243.9589,0.00015645,2]
[403734358,1769517924332,-694.12520733,0.00015651,2]
[403734359,1769517924358,-169.346534,0.00015653,2]
[403734360,1769517924386,-150.00262085,0.00015657,2]
[403734361,1769517924412,-255.03,0.00015667,2]
[403734362,1769517924440,-151.0,0.00015681,2]
[403734363,1769517924468,-669.09595748,0.00015708,2]
[403734364,1769517924497,-4515.46025476,0.00015708,2]
[403734365,1769517924533,-7466.00160723,0.00015708,2]
[403734366,1769517924563,-310.88139134,0.00015708,2]
[403734367,1769517924591,-1403.279,0.00015735,2]
[403734368,1769517924616,-178.499,0.00015735,2]
[403734369,1769517924643,-151.0,0.00015736,2]
[403734370,1769517924671,-151.0,0.00015736,2]
[403734371,1769517924699,-151.0,0.00015736,2]
[403734372,1769517924725,-151.0,0.00015736,2]
[403734373,1769517924751,-151.0,0.00015736,2]
[403734374,1769517924776,-151.0,0.00015736,2]
[403734375,1769517924802,-151.0,0.00015736,2]
[403734376,1769517924829,-151.0,0.00015736,2]
[403734377,1769517924855,-151.0,0.00015736,2]
[403734378,1769517924883,-151.0,0.00015736,2]
[403734379,1769517924908,-151.0,0.00015736,2]
[403734380,1769517924933,-151.0,0.00015736,2]
[403734381,1769517924960,-151.0,0.00015736,2]
[403734382,1769517924984,-151.0,0.00015736,2]
[403734383,1769517925009,-151.0,0.00015736,2]
[403734384,1769517925034,-151.0,0.00015736,2]
[403734385,1769517925059,-151.0,0.00015736,2]
[403734386,1769517925084,-151.0,0.00015736,2]
[403734387,1769517925110,-151.0,0.00015736,2]
[403734388,1769517925135,-151.0,0.00015736,2]
[403734389,1769517925159,-500.0,0.00015744,2]
[403734390,1769517925184,-500.0,0.00015744,2]
[403734391,1769517925208,-500.0,0.00015744,2]
[403734392,1769517925232,-500.0,0.00015744,2]
[403734393,1769517925256,-93.20078342,0.00015744,2]
[403734394,1769517925344,-406.79921658,0.00015744,2]
[403734395,1769517925367,-500.0,0.00015744,2]
[403734396,1769517925392,-1050.88046112,0.00015744,5]
[403734397,1769517925416,-174.4553807,0.00015744,2]
[403734398,1769517925447,-47867.8649416,0.00015745,2]
[403734399,1769517925673,-50000.0,0.00015745,2]
[403734400,1769517926197,-50000.0,0.00015745,2]
[403734401,1769517926739,-50000.0,0.00015745,2]
[403734404,1769517927472,-50000.0,0.00015745,2]
[403734405,1769517928144,-50000.0,0.00015745,2]
[403734406,1769517928784,-50000.0,0.00015745,2]
[403734421,1769518231747,-549.90444418,0.00015445,2]
[403734422,1769518231862,-1115.5,0.00015445,2]
[403734423,1769518231873,-2398.50978505,0.00015445,2]
[403734424,1769518231883,-300.0,0.00015542,2]
[403734425,1769518231893,-1200.0,0.00015542,2]
[403734426,1769518231904,-300.0,0.00015542,2]
[403734427,1769518231914,-305490.73165778,0.00015543,2]
[403734428,1769518231926,-18950.8954302,0.00015543,2]
[403734429,1769518231938,-30594.97103946,0.00015543,2]
[403734430,1769518231950,-61253.59418883,0.00015543,2]
[403734431,1769518231962,-938.28735,0.00015543,2]
[403734432,1769518231975,-1134.20792491,0.00015543,2]
[403734436,1769518237878,-10249.92670584,0.00015543,2]
[403734437,1769518237889,-10330.8584515,0.00015543,2]
[403734438,1769518237901,-1725.23189511,0.00015543,2]
[403734439,1769518237935,-9784.30042233,0.00015543,2]
[403734440,1769518237945,-799.11264715,0.00015543,2]
[403734441,1769518238046,-73189.84712657,0.00015543,2]
[403734445,1769518239934,-475558.03516032,0.00015543,2]
[403734446,1769518239943,-207.2542609,0.00015545,2]
[403734447,1769518239953,-2237.7438,0.00015645,2]
[403734448,1769518239963,-158.68872341,0.00015645,2]
[403734449,1769518239973,-300.0,0.00015735,2]
[403734450,1769518239982,-200.0,0.00015736,2]
[403734451,1769518239994,-500.0,0.00015736,2]
[403734452,1769518240003,-247.52642896,0.00015736,2]
[403734453,1769518240012,-500.0,0.00015736,2]
[403734454,1769518240022,-500.0,0.00015736,2]
[403734455,1769518240033,-500.0,0.00015736,2]
[403734456,1769518240043,-500.0,0.00015736,2]
[403734457,1769518240052,-151.0,0.00015736,2]
[403734458,1769518240062,-151.0,0.00015736,2]
[403734459,1769518240072,-151.0,0.00015736,2]
[403734460,1769518240082,-151.0,0.00015736,2]
[403734461,1769518240091,-500.0,0.00015736,2]
[403734462,1769518240101,-500.0,0.00015736,2]
[403734463,1769518240110,-500.0,0.00015736,2]
[403734464,1769518240120,-500.0,0.00015736,2]
[403734465,1769518240129,-200.0,0.00015736,2]
[403734466,1769518240138,-200.0,0.00015736,2]
[403734467,1769518240147,-500.0,0.00015744,2]
[403734468,1769518240156,-160.49226824,0.00015744,2]
[403734469,1769518240166,-158.23639805,0.00015744,2]
[403734470,1769518240175,-221.27843228,0.00015744,2]
[403734471,1769518240184,-500.0,0.00015744,2]
[403734472,1769518240194,-500.0,0.00015744,2]
[403734473,1769518240204,-500.0,0.00015744,2]
[403734474,1769518240213,-500.0,0.00015744,2]
[403734475,1769518240223,-357.17331405,0.00015744,2]
[403734476,1769518240233,-250.0,0.00015761,2]
[403734477,1769518240242,-303.5791788,0.00015761,2]
[403734478,1769518240251,-195.0,0.00015777,2]
[403734479,1769518240261,-250.0,0.00015797,2]
[403734480,1769518240271,-3023.1228,0.00015808,2]
[403734481,1769518240280,-195.0,0.00015825,2]
[403734482,1769518240289,-1000.0,0.00015845,2]
[403734483,1769518240299,-11606.7562,0.00015845,2]
[403734484,1769518240311,-54962.16158416,0.00015905,2]
[403734486,1769518240321,-1000.0,0.00015918,2]
[403734487,1769518240330,-500.0,0.00015944,2]
[403734488,1769518240339,-511.30863973,0.00015944,2]
[403734489,1769518240347,-500.0,0.00015944,2]
[403734490,1769518240356,-500.0,0.00015944,2]
[403734491,1769518240365,-733.0,0.00016168,2]
[403734492,1769518240373,-1033.0,0.00016197,2]
[403734493,1769518240382,-500.0,0.00016218,2]
[403734494,1769518240391,-1073.0,0.00016266,2]
[403734495,1769518240399,-157.0,0.00016299,2]
[403734496,1769518240408,-492.9262075,0.00016373,2]
[403734497,1769518240417,-500.0,0.00016373,2]
[403734498,1769518240426,-500.91361119,0.00016373,2]
[403734499,1769518240435,-504.29183883,0.00016373,2]
[403734500,1769518240444,-500.0,0.00016373,2]
[403734501,1769518240453,-500.81908934,0.00016373,2]
[403734502,1769518240461,-504.6451351,0.00016373,2]
[403734503,1769518240470,-504.16176982,0.00016373,2]
[403734504,1769518240479,-503.4216211,0.00016373,2]
[403734505,1769518240488,-321.78089856,0.00016373,2]
[403734507,1769518240497,-500.0,0.00016373,2]
[403734508,1769518240507,-548.87500636,0.00016373,2]
[403734509,1769518240515,-504.00131357,0.00016373,2]
[403734510,1769518240524,-516.83194963,0.00016373,2]
[403734511,1769518240880,-500.0,0.00016373,2]
[403734512,1769518240891,-302.74545391,0.00016373,2]
[403734513,1769518240901,-500.0,0.00016373,2]
[403734514,1769518240911,-942.49575379,0.00016425,2]
[403734515,1769518240921,-500.0,0.00016438,2]
[403734516,1769518240930,-573.37963552,0.00016438,2]
[403734517,1769518240939,-500.0,0.00016438,2]
[403734518,1769518240949,-500.0,0.00016438,2]
[403734519,1769518240960,-500.0,0.00016438,2]
[403734520,1769518240969,-500.0,0.00016438,2]
[403734521,1769518240979,-500.0,0.00016438,2]
[403734522,1769518240989,-500.0,0.00016438,2]
[403734523,1769518240999,-530.86016768,0.00016438,2]
[403734524,1769518241009,-500.0,0.00016438,2]
[403734525,1769518241019,-500.0,0.00016438,2]
[403734526,1769518241028,-300.0,0.00016438,2]
[403734527,1769518241037,-300.0,0.00016438,2]
[403734528,1769518241047,-150.43874916,0.00016438,2]
[403734529,1769518241056,-300.0,0.00016438,2]
[403734530,1769518241066,-301.22924657,0.00016438,2]
[403734531,1769518241076,-800.0,0.00016438,2]
[403734532,1769518241086,-255.03,0.0001645,2]
[403734533,1769518241095,-500.0,0.00016492,2]
[403734534,1769518241104,-1000.0,0.00016515,2]
[403734535,1769518241113,-262.77,0.00016675,2]
[403734536,1769518241122,-250.0,0.00016852,2]
[403734537,1769518241131,-500.0,0.00016921,2]
[403734538,1769518241140,-150.00262085,0.00017018,2]
[403734539,1769518241150,-1680.0,0.00017087,2]
[403734540,1769518241160,-195.0,0.00017098,2]
[403734541,1769518241169,-1000.0,0.00017112,2]
[403734542,1769518241178,-919.77,0.00017139,2]
[403734543,1769518241188,-255.03,0.00017234,2]
[403734544,1769518241197,-201.18477612,0.0001732,2]
[403734545,1769518241206,-195.0,0.0001732,2]
[403734546,1769518241215,-500.0,0.0001732,2]
[403734547,1769518241225,-250.0,0.0001732,2]
[403734548,1769518241234,-300.0,0.0001732,2]
[403734549,1769518241244,-1000.0,0.00017709,2]
[403734550,1769518241254,-1176.0,0.0001799,2]
[403734551,1769518241263,-255.03,0.00018017,2]
[403734552,1769518241272,-1000.0,0.00018306,2]
[403734553,1769518241281,-2113.8,0.00018356,2]
[403734554,1769518241290,-150.00262085,0.0001838,3]
[403734555,1769518241300,-262.77,0.00018528,2]
[403734556,1769518241309,-4063.91422921,0.00018529,2]
[403734557,1769518241318,-480.0,0.00018784,2]
[403734558,1769518241327,-255.03,0.000188,2]
[403734559,1769518241336,-500.0,0.00019178,2]
[403734560,1769518241346,-450.47987285,0.00019178,2]
[403734561,1769518241355,-500.0,0.00019178,2]
[403734562,1769518241364,-150.00262085,0.00019741,8]
[403734563,1769518241373,-262.77,0.00020381,2]
[403734564,1769518241382,-150.00262085,0.00021102,12]
[403734565,1769518241391,-4063.91422921,0.00021613,2]
[403734566,1769518241400,-5000.0,0.00021918,2]
[403734567,1769518241409,-1421.46,0.00022,7]
[403734568,1769518241418,-262.77,0.00022234,2]
[403734569,1769518241428,-150.00262085,0.00022464,17]
[403734570,1769518241437,-150.00262085,0.00023825,22]
[403734571,1769518241447,-4063.91422921,0.00024697,2]
[403734572,1769518241457,-150.00262085,0.00025186,26]
[403734573,1769518241466,-150.00262085,0.00026548,31]
[403734574,1769518241475,-750.0,0.00027397,20]
[403734575,1769518241484,-7582.30838307,0.00027398,30]
[403734576,1769518241493,-4063.91422921,0.00027781,2]
[403734577,1769518241502,-150.00262085,0.00027909,34]
[403734578,1769518241511,-207.25426088,0.00029223,2]
[403734579,1769518241519,-150.00262085,0.0002927,38]
[403734580,1769518241529,-150.00262085,0.00030632,42]
[403734581,1769518241538,-4063.91422921,0.00030864,2]
[403734582,1769518241548,-150.00262085,0.00031993,46]
[403734583,1769518241559,-500.0,0.00032877,7]
[403734584,1769518241568,-500.0,0.00032877,7]
[403734585,1769518241578,-500.0,0.00032877,7]
[403734586,1769518241588,-500.0,0.00032877,7]
[403734587,1769518241597,-500.0,0.00032877,7]
[403734588,1769518241606,-500.0,0.00032877,7]
[403734589,1769518241615,-500.0,0.00032877,7]
[403734590,1769518241625,-220.61725653,0.00032877,7]
[403734591,1769518241634,-500.0,0.00032877,7]
[403734592,1769518241643,-157.16,0.000329,14]
[403734593,1769518241652,-1421.46,0.000329,14]
[403734594,1769518241661,-150.00262085,0.00033354,50]
[403734595,1769518241670,-300.0,0.000334,2]
[403734596,1769518241679,-222.33903402,0.00034026,2]
[403734597,1769518241688,-150.00262097,0.00034716,53]
[403734598,1769518241697,-170.52019578,0.00036077,57]
[403734599,1769518241706,-615.0,0.00036684,2]
[403734600,1769518241715,-6570.0,0.00036684,2]
[403734601,1769518241728,-194.72792766,0.00037265,2]
[403734602,1769518241737,-201.93286099,0.0003732,2]
[403734603,1769518241747,-209.40437684,0.00037375,2]
[403734604,1769518241758,-217.15233878,0.0003743,2]
[403734605,1769518241767,-170.52019578,0.00037438,61]
[403734606,1769518241779,-225.18697532,0.00037485,2]
[403734607,1769518241791,-233.51889341,0.0003754,2]
[403734608,1769518241800,-242.15909246,0.00037595,2]
[403734609,1769518241810,-251.11897888,0.0003765,2]
[403734610,1769518241819,-1421.46,0.000377,14]
[403734611,1769518241829,-260.4103811,0.00037705,2]
[403734612,1769518241838,-270.0455652,0.0003776,2]
[403734613,1769518241847,-280.03725112,0.00037815,2]
[403734614,1769518241857,-290.39862941,0.0003787,2]
[403734615,1769518241866,-301.1433787,0.00037925,2]
[403734616,1769518241875,-2000.0,0.000381,2]
[403734617,1769518241884,-150.0,0.00038246,60]
[403734618,1769518241893,-150.0,0.00038246,60]
[403734619,1769518241903,-150.0,0.00038246,60]
[403734620,1769518241912,-150.56106766,0.00038246,60]
[403734621,1769518241921,-500.0,0.00038246,60]
[403734622,1769518241931,-153.15937523,0.00038246,60]
[403734623,1769518241939,-150.0,0.00038246,60]
[403734624,1769518241949,-465.0,0.00038246,60]
[403734625,1769518241958,-500.0,0.00038246,60]
[403734626,1769518241967,-150.0,0.00038246,2]
[403734627,1769518241976,-150.0,0.00038246,60]
[403734628,1769518241986,-500.0,0.00038246,60]
[403734629,1769518241995,-150.0,0.00038246,30]
[403734630,1769518242004,-500.0,0.00038246,60]
[403734631,1769518242013,-500.0,0.00038246,60]
[403734632,1769518242023,-150.0,0.00038246,60]
[403734633,1769518242032,-150.0,0.00038246,2]
[403734634,1769518242041,-150.0,0.00038246,60]
[403734635,1769518242050,-500.0,0.00038246,60]
[403734636,1769518242060,-150.0,0.00038246,60]
[403734637,1769518242070,-500.0,0.00038301,60]
[403734638,1769518242080,-150.0,0.00038301,60]
[403734639,1769518242092,-465.0,0.00038301,60]
[403734640,1769518242102,-500.0,0.00038301,60]
[403734641,1769518242111,-150.0,0.00038301,2]
[403734642,1769518242121,-628.26751797,0.00038301,60]
[403734643,1769518242130,-500.0,0.00038301,60]
[403734644,1769518242139,-551.38355661,0.00038301,60]
[403734645,1769518242148,-150.0,0.00038301,60]
[403734646,1769518242158,-150.0,0.00038301,60]
[403734647,1769518242167,-500.0,0.00038301,60]
[403734648,1769518242176,-150.0,0.00038301,60]
[403734649,1769518242186,-500.0,0.00038356,60]
[403734650,1769518242195,-150.0,0.00038356,60]
[403734651,1769518242204,-465.0,0.00038356,60]
[403734652,1769518242213,-500.0,0.00038356,60]
[403734653,1769518242223,-150.0,0.00038356,2]
[403734654,1769518242233,-200.0,0.00038356,60]
[403734655,1769518242243,-200.0,0.00038356,60]
[403734656,1769518242254,-500.0,0.00038356,60]
[403734657,1769518242263,-150.0,0.00038356,60]
[403734658,1769518242272,-511.21504498,0.0003841,60]
[403734659,1769518242281,-150.0,0.0003841,60]
[403734660,1769518242290,-465.0,0.0003841,60]
[403734661,1769518242300,-500.0,0.0003841,60]
[403734662,1769518242311,-150.0,0.0003841,2]
[403734663,1769518242320,-600.0,0.0003841,60]
[403734664,1769518242329,-150.0,0.0003841,60]
[403734665,1769518242339,-150.0,0.00038465,60]
[403734666,1769518242348,-465.0,0.00038465,60]
[403734667,1769518242357,-425.09486917,0.00038465,60]
[403734668,1769518242368,-150.0,0.00038465,2]
[403734669,1769518242378,-150.0,0.00038465,60]
[403734670,1769518242388,-250.0,0.0003852,60]
[403734671,1769518242399,-465.0,0.0003852,60]
[403734672,1769518242409,-250.0,0.0003852,2]
[403734673,1769518242418,-250.0,0.0003852,60]
[403734674,1769518242428,-465.0,0.00038575,60]
[403734675,1769518242437,-465.0,0.0003863,60]
[403734676,1769518242446,-465.0,0.00038684,60]
[403734677,1769518242455,-465.0,0.00038739,60]
[403734678,1769518242465,-465.0,0.00038794,60]
[403734679,1769518242474,-170.52019578,0.000388,65]
[403734680,1769518242483,-465.0,0.00038849,60]
[403734681,1769518242493,-465.0,0.00038904,60]
[403734682,1769518242502,-465.0,0.00038958,60]
[403734683,1769518242511,-465.0,0.00039013,60]
[403734684,1769518242520,-465.0,0.00039068,60]
[403734685,1769518242529,-1421.46,0.000391,14]
[403734686,1769518242539,-465.0,0.00039123,60]
[403734687,1769518242548,-465.0,0.00039178,60]
[403734688,1769518242557,-465.0,0.00039232,60]
[403734689,1769518242567,-465.0,0.00039287,60]